Workbook

Sheet Istruzioni
A1: Informazioni generali | B1: Link alla guida in linea "Music Style Guide iTunes"
A3: Perché il file funzioni correttamente bisogna attivare le MACRO quando viene chiesto all'apertura del file stesso. Qualora il messaggio di apertura non vi permettesse di aprire le macro a causa di una protezione, dovete fare un cambiamento: Cerca nei menu dove si imposta il livello di protezione delle macro. Cambiate abbassando la protezione da "Elevata" a "Media". Salvate e riaprire il file.
A5: Si può compilare un file con quante playlist si vuole. Per playlist si intende un rpdotto (album, singolo, EP, ecc.)
A7: Questo file deve essere nominato in questo modo: NomeLabel_Barcode (es: Ossigeno_801165364256), oppure NomeLabel_CodiceCatalogo (es: Ossigeno_VC 001)
A9: Le colonne evidenziate in rosa sono obbligatorie
A11: I titoli degli album e dei brani in lingua italiana vanno scitti come ci hanno insegnato a scuola con le maiuscole all'inizio della frase, ecc. ecc. Questo vale anche per titoli in francese, svedese, scandinavo. Per lo spagnolo, portoghese, tedesco e altre eccezioni e dettagli consulta la guida in linea "WESTNER EUROPE LANGUAGE GUIDELINES" | B11: https://help.apple.com/itc/musicstyleguide/#/itcc6840efe5 | C11: new 5.4
A13: I titoli degli album e dei brani in lingua inglese vanno scritti con le iniziali di tutte le parole in maiuscolo ad eccezione delle seguenti parole che vanno scritte tutto minuscolo: a, an, and, as, but, for, from, nor, of, or, so, the, to, and yet. Tutto in minuscolo vanno anche le preposizioni di quattro lettere o meno (at, by, for, from, in, into, of, off, on, onto, out, over, to, up, and with), tranne quando la parola è parte di una frase verbale o è usata come altra componente del discorso (come un avverbio, un aggettivo, un sostantivo o un verbo). Per un elenco di esempi e ulteriori dettagli consulta la guida in linea "ENGLISH LANGUAGE GUIDELINES" | B13: https://help.apple.com/itc/musicstyleguide/#/itc7436bdcd1
A15: I titoli degli album e dei brani in cirillico hanno delle regole molto complesse si prega di consultarci prim di compilare i metadati. Alcuni dettagli disponibili nella guida in linea "EASTERN EUROPE LANGUAGE GUIDELINES" | B15: https://help.apple.com/itc/musicstyleguide/#/itce7b765579 | C15: new 5.4
A17: Non usare mai la scrittura di nomi e titoli tutto maiuscolo, per nessuna lingua.
A19: Per l'inserimento di brani di musica jazz e musica classica, dal 2019 ci sono delle regole specifiche da rispettare. Compila accuratamente la colonna "Artist Role" delle Playlist e delle Tracks con i collaboratori artistici e i musicisti con il loro strumento. | C19: new 5.4
A21: Per l'inserimento di brani di musica classica ci sono delle regole specifiche da rispettare. Chi ha del repertorio di musica classica ci contatti prima di compilare il metadati. Per avere un'idea delle regole consulta la guida in linea. | B21: https://help.apple.com/itc/musicstyleguide/#/itc7a6525236
A23: Le Playlist che contengono registrazioni di Pubblico Dominio devono essere evidenziate al momento dell'invio dei metadati. 1) Nella colonna "Territory" della Playlist va scritto semplicemente "PD". 2) Nella colonna "(P) Year" delle Track mettere l'anno di prima pubblicazione originale della registrazione. Att.ne: Molti negozi e servizi non accettano più registrazioni di pubblico dominio (sopratutto alcuni dei più importanti), la distribuzione sarà perciò a macchia di leoparto tra negozi e nazioni.
A25: Come aumentare le potenzialità di vendita
A27: Ottimizza i sample di ascolto. Per farlo devi decidere quando inizia la parte più interessante di ogni brano da cui far partire i 30 o 90 secondi (dipende dal negozio) di preascolto che il pubblico ha a disposizione per valutare se il brano gli piace o meno. Indica il dato, in secondi, nella colonna "Preview Start". Attenzione che il punto di inizio del sample deve essere ad almeno 90 secondi dalla fine del brano. | C27: new 5.4
A29: Indica i dettagli di Musicisti, Direttori, Solisti, Produttori, Remixer, ecc.. e/o lo strumento suonato dai musicisti, compilando la colonna "Artist Role" delle Playlist e delle Tracks. | C29: lista aggiornata 5.4
A31: Fornitura file audio e copertine
A33: Per ogni playlist, qualora non venga inviato il disco fisico ma i file relativi, gli stessi devono avere delle precise caratteristiche tecniche così come indicato nel file "o2d_Manuale fornitura contenuti.doc" disponibile dalla pagina "download" del tuo Partner Manager
A35: In estrema sintesi: i file audio devono essere in formato .wav, 16 bit, 44100Hz, 1411kbps, il Sistema NON accetta nessun altro formato, frequenza o campionamento; Il file delle copertine deve essere formato .jpg 3000x3000 pixel (quadrata!), RGB a 72 dpi.
A37: Fornitura URL dei Profili Artista
A39: Per ogni Artista e Featuring presente nel file metadati, bisogna comunicare via email, parallelamente all’invio dello stesso, gli URL (l’indirizzo sul web) dei rispettivi profili Artista su Spotify e Apple Music. Sia per Spotify che per Apple Music, una volta identificato il vostro Artista cliccate sui tre puntini a fianco del nome e copiate il link seguendo le tendine di scelta. Fate molta attenzione che si tratti proprio del vostro Artista (controllando la discografia allegata) e che il nome corrisponda al 100% con quello inserito nel metadati, anche nella sua forma, punteggiatura e caratteri speciali. Se un profilo del vostro Artista non esiste, comunicatecelo e lo faremo creare ex-novo. Nota: Una volta comunicato il profilo, verrà inserito nel nostro database e non sarà più necessario. | C39: new 5.4

Sheet Playlists
B1: Album | L1: Territory | M1: Out of Print | N1: Remastered | O1: Digital Only | P1: Gapless | R1: NON Più IN USO
A2: Label | C2: (P) Date | D2: Artist Name | E2: Album Title | F2: Album Title Version | G2: Note | H2: Barcode | I2: Tier | J2: Genre | K2: Featuring | Q2: Artist Role | R2: Italian Spot | S2: English Spot
B3: Code

Sheet Tracks
A1: Album | B1: Disc | C1: Track | E1: (P) | Q1: Parental Advisory | R1: Preview | T1: Publisher | V1: Clip
D2: ISRC | F2: Artist Name | G2: Track Title | H2: Track Title Version | I2: Featuring | J2: Note | K2: Time | L2: Music Composer | M2: Lyrics Author | N2: Publisher | O2: ISWC | P2: Genre | S2: Tier | U2: Language | V2: Youtube | W2: Artist Role
A3: Code | B3: Nr. | C3: Nr. | E3: Year | R3: Start | T3: Control | V3: Link

Sheet iTunes Pricing
C1: PREZZI AL PUBBLICO
C2: CONVERTITI IN EURO | J2: esempi in VALUTA ORIGINALE
C3: EU | D3: USA | E3: CAN | F3: MEX | G3: AUS | H3: JP | J3: EU | K3: USA | L3: CAN | M3: MEX | N3: AUS | O3: JP
B4: data cambio | C4: 2018-11-27 | D4: 0.8828 | E4: 0.6659 | F4: 0.0431 | G4: 0.6398 | H4: 0.0078
A6: Track Tier (Categoria di prezzo x il BRANO)
A7: Back | C7: 0.69 | D7: =$K7*D$4 -> 0 | E7: =$L7*E$4 -> 0 | F7: =$M7*F$4 -> 0 | G7: =$N7*G$4 -> 0.761362 | H7: =$O7*H$4 -> 0 | I7: =A7 -> Back | J7: 0.69 | N7: 1.19
A8: Mid (default) | C8: 0.99 | D8: =$K8*D$4 -> 0.873972 | E8: =$L8*E$4 -> 0.659241 | F8: =$M8*F$4 -> 0.5172 | G8: =$N8*G$4 -> 1.081262 | H8: =$O8*H$4 -> 1.17 | I8: =A8 -> Mid (default) | J8: 0.99 | K8: 0.99 | L8: 0.99 | M8: 12 | N8: 1.69 | O8: 150
A9: Front | C9: 1.29 | D9: =$K9*D$4 -> 1.138812 | E9: =$L9*E$4 -> 0.859011 | F9: =$M9*F$4 -> 0 | G9: =$N9*G$4 -> 1.401162 | I9: =A9 -> Front | J9: 1.29 | K9: 1.29 | L9: 1.29 | N9: 2.19
A11: Playlist Tier (Categoria di prezzo per MULTI-TRACK ALBUM)
A12: Digital 45 * | B12: da 2 a 4 Tracks | C12: 1.49 | D12: =$K12*D$4 -> 1.756772 | E12: =$L12*E$4 -> 1.325141 | F12: =$M12*F$4 -> 0.862 | G12: =$N12*G$4 -> 2.168922 | H12: =$O12*H$4 -> 2.34 | I12: =A12 -> Digital 45 * | J12: 1.49 | K12: 1.99 | L12: 1.99 | M12: 20 | N12: 3.39 | O12: 300
A13: Mini-EP * | B13: da 3 a 7 Tracks | C13: 1.99 | D13: 2.639572 | E13: 1.991041 | F13: 1.293 | G13: 3.192602 | H13: 3.51 | I13: Mini-EP * | J13: 1.99 | K13: 2.99 | L13: 2.99 | M13: 30 | N13: 4.99 | O13: 450
A14: EP * | B14: da 4 a 10 Tracks | C14: 2.99 | D14: 3.522372 | E14: 2.656941 | F14: 1.724 | G14: 4.472202 | H14: 4.68 | I14: EP * | J14: 2.99 | K14: 3.99 | L14: 3.99 | M14: 40 | N14: 6.99 | O14: 600
A15: MiniAlbum * | B15: da 5 a 10 Tracks | C15: 3.99 | D15: 4.405172 | E15: 3.322841 | F15: 2.155 | G15: 5.751802 | H15: 5.85 | I15: MiniAlbum * | J15: 3.99 | K15: 4.99 | L15: 4.99 | M15: 50 | N15: 8.99 | O15: 750
A16: MiniAlbum 2 * | B16: da 5 a 10 Tracks | C16: 3.99 | D16: 4.405172 | E16: 3.322841 | F16: 2.155 | G16: 5.751802 | H16: 5.85 | I16: =A16 -> MiniAlbum 2 * | J16: 4.49 | K16: 4.99 | L16: 4.99 | M16: 50 | N16: 8.99 | O16: 750
A17: Budget (One) | C17: 4.99 | D17: 5.287972 | E17: 3.988741 | F17: 2.586 | G17: 6.711502 | H17: 7.02 | I17: Budget (One) | J17: 4.99 | K17: 5.99 | L17: 5.99 | M17: 60 | N17: 10.49 | O17: 900
A18: Budget Two | C18: 5.99 | D18: 6.170772 | E18: 4.654641 | F18: 3.2325 | G18: 7.671202 | H18: 8.19 | I18: Budget Two | J18: 5.99 | K18: 6.99 | L18: 6.99 | M18: 75 | N18: 11.99 | O18: 1050
A19: Back | C19: 6.99 | D19: 7.053572 | E19: 5.320541 | F19: 3.879 | G19: 8.950802 | H19: 9.36 | I19: Back | J19: 6.99 | K19: 7.99 | L19: 7.99 | M19: 90 | N19: 13.99 | O19: 1200
A20: Mid | C20: 7.99 | D20: 7.936372 | E20: 5.986441 | F20: 4.5255 | G20: 9.910502 | H20: 10.53 | I20: Mid | J20: 7.99 | K20: 8.99 | L20: 8.99 | M20: 105 | N20: 15.49 | O20: 1350
A21: Mid/Front (default) | C21: 8.99 | D21: 8.73972 | E21: 6.652341 | F21: 5.172 | G21: 10.870202 | H21: 11.7 | I21: Mid/Front (default) | J21: 8.99 | K21: 9.9 | L21: 9.99 | M21: 120 | N21: 16.99 | O21: 1500
A22: Front (One) | C22: 9.99 | D22: 9.701972 | E22: 7.318241 | F22: 5.603 | G22: 12.149802 | H22: 12.87 | I22: Front (One) | J22: 9.99 | K22: 10.99 | L22: 10.99 | M22: 130 | N22: 18.99 | O22: 1650
A23: Front Plus | C23: 11.99 | D23: 10.584772 | E23: 7.984141 | F23: 6.465 | G23: 12.789602 | H23: 14.04 | I23: Front Plus | J23: 11.99 | K23: 11.99 | L23: 11.99 | M23: 150 | N23: 19.99 | O23: 1800
A25: Per Playlist con 2, 3 o più CD, il prezzo sarà moltiplicato per il numero di CD.
A27: * Digital 45, Mini-EP, EP, MiniAlbum
A28: Con l'obbiettivo di dare al multi-track album un prezzo che dia uno sconto al pubblico rispetto a comprare la somma delle singole tracce, è fondamentale tenere presente che:
A29: Scegliendo i Tier con l'asterisco (con il numero di brani minimi segnalati) si da la convenienza al pubblico solo in EUROPA
A30: Per dare una convenienza al pubblico anche negli altri paesi, bisogna scegliere questi tier quando hanno una traccia in più di quella riportata nella tabella: Digital 45 (3), Mini-EP (4), EP (5), MiniAlbum (6).

Sheet Parametri (hidden)
A1: Afghanistan | B1: Performer | C1: Alternative / Alternative
A2: Aland Islands | B2: Soloist | C2: Alternative / Alternative Dance
A3: Albania | B3: Orchestra | C3: Alternative / Brit-Pop
A4: Algeria | B4: Actor | C4: Alternative / Experimental Rock
A5: American Samoa | B5: Voce narrante | C5: Alternative / Garage Rock
A6: Andorra | B6: Arranger | C6: Alternative / Goth & Industrial
A7: Angola | B7: Librettist | C7: Alternative / Grunge
A8: Anguilla | B8: Conductor | C8: Alternative / Hardcore & Punk
A9: Antarctica | B9: Choir Master | C9: Alternative / Indie & Lo-Fi
A10: Antigua and Barbuda | B10: Producer | C10: Alternative / New Wave & Post-Punk
A11: Argentina | B11: Sound Engineer | C11: Alternative / Noise
A12: Armenia | B12: Mastering Engineer | C12: Alternative / Singer-Songwriters
A13: Aruba | B13: Remixer | C13: Alternative / Ska
A14: Australia | B14: Lead Vocals | C14: Alternative / Space Rock
A15: Austria | B15: Background Vocals | C15: Audiobooks / Audiobooks
A16: Azerbaijan | B16: Contralto Vocals | C16: Blues / Blues
A17: Bahamas | B17: Baritono Vocals | C17: Blues / Acoustic Blues
A18: Bahrain | B18: Tenore Vocals | C18: Blues / Chicago Blues
A19: Bangladesh | B19: Countertenor Vocals | C19: Blues / Classical Female Vocal Blues
A20: Barbados | B20: Soprano Vocals | C20: Blues / Contemporary Blues
A21: Belarus | B21: Mezzo Soprano Vocals | C21: Blues / Delta Blues
A22: Belgium | B22: Bass Vocals | C22: Blues / Electric Blues Guitar
A23: Belize | B23: Guest Vocals | C23: Blues / Modern Blues
A24: Benin | B24: Chorus | C24: Blues / New Orleans Blues
A25: Bermuda | B25: Guitar | C25: Blues / Regional Blues
A26: Bhutan | B26: Electric Guitar | C26: Blues / Texas Blues
A27: Bolivia | B27: Acoustic Guitar | C27: Blues / Traditional Blues
A28: Bonaire, Sint Eustatius and Saba | B28: 12-String Guitar | C28: Children's music / Children's Music
A29: Bosnia and Herzegovina | B29: 12-String Acoustic Guitar | C29: Children's music / Barney
A30: Botswana | B30: Classical Guitar | C30: Children's music / Cartoon Music
A31: Bouvet Island | B31: Lead Guitar | C31: Children's music / Disney
A32: Brazil | B32: Rhythm Guitar | C32: Children's music / Educational
A33: British Indian Ocean Territory | B33: Steel Guitar | C33: Children's music / Lullabies
A34: Brunei Darussalam | B34: Pedal Steel Guitar | C34: Children's music / Music For Little People
A35: Bulgaria | B35: Electric Bass Guitar | C35: Children's music / Pokemon
A36: Burkina Faso | B36: Acoustic Bass Guitar | C36: Children's music / Sesame Street
A37: Burundi | B37: Double Bass | C37: Christian & Gospel / Christian
A38: Cambodia | B38: Upright Bass | C38: Christian & Gospel / Gospel
A39: Cameroon | B39: Fretless Electric Bass Guitar | C39: Christian & Gospel / Christian Rap
A40: Canada | B40: Banjo | C40: Christian & Gospel / Christian Rock
A41: Cape Verde | B41: Mandolin | C41: Christian & Gospel / Country Gospel
A42: Cayman Islands | B42: Keyboards | C42: Christian & Gospel / Praise & Worship
A43: Central African Republic | B43: Piano | C43: Classical / Classical
A44: Chad | B44: Forte Piano | C44: Classical / Baroque (C. 1600-1750)
A45: Chile | B45: Prepared Piano | C45: Classical / Chamber Music
A46: China | B46: Organ | C46: Classical / Classical (C. 1770-1830)
A47: Christmas Island | B47: Fender Rhodes | C47: Classical / Early Music
A48: Cocos Islands | B48: Hammond Organ | C48: Classical / Modern, 20th, & 21st Century
A49: Colombia | B49: Harpsichord | C49: Classical / Renaissance (C. 1450-1600)
A50: Comoros | B50: Harmonica | C50: Classical / Romantic (C. 1820-1910)
A51: Congo | B51: Chromatic Harmonica | C51: Classical / Sacred & Religious
A52: Congo, The Democratic Republic Of | B52: Accordion | C52: Classical / Symphonies
A53: Cook Islands | B53: Concertina | C53: Country / Country
A54: Costa Rica | B54: Saxophone | C54: Country / Alt-Country & Americana
A55: Cote D Ivoire | B55: Soprano Saxophone | C55: Country / Bluegrass
A56: Croatia | B56: Alto Saxophone | C56: Country / Country Gospel
A57: Cuba | B57: Tenor Saxophone | C57: Country / Cowboy
A58: Curacao | B58: Baritone Saxophone | C58: Country / Honky-Tonk
A59: Cyprus | B59: Sopranino Saxophone | C59: Country / Nashville
A60: Czech Republic | B60: Flute | C60: Country / Outlaw & Progressive Country
A61: Denmark | B61: Piccolo Flute | C61: Country / Square Dance
A62: Djibouti | B62: Recorder | C62: Country / Traditional Country
A63: Dominica | B63: Clarinet | C63: Country / Western Swing
A64: Dominican Republic | B64: Bass Clarinet | C64: Dance & Electronic / Dance
A65: Ecuador | B65: Bassoon | C65: Dance & Electronic / Electronica
A66: Egypt | B66: Oboe | C66: Dance & Electronic / Ambient
A67: El Salvador | B67: Trumpet | C67: Dance & Electronic / Lounge
A68: Equatorial Guinea | B68: Trombone | C68: Dance & Electronic / Big Beat
A69: Eritrea | B69: Corno franc. | C69: Dance & Electronic / Dance Pop
A70: Estonia | B70: Tuba | C70: Dance & Electronic / Deep House
A71: Ethiopia | B71: Bass Trombone | C71: Dance & Electronic / Disco
A72: Falkland Islands | B72: Violin | C72: Dance & Electronic / Drum & Bass
A73: Faroe Islands | B73: First Violin | C73: Dance & Electronic / Freestyle
A74: Fiji | B74: Second Violin | C74: Dance & Electronic / House
A75: Finland | B75: Viola | C75: Dance & Electronic / Idm
A76: France | B76: Viola Da Gamba | C76: Dance & Electronic / Industrial Dance
A77: French Guiana | B77: Harp | C77: Dance & Electronic / Jungle
A78: French Polynesia | B78: Cello | C78: Dance & Electronic / Techno
A79: French Southern Territories | B79: Drums | C79: Dance & Electronic / Trance
A80: Gabon | B80: Percussion | C80: Dance & Electronic / Trip-Hop
A81: Gambia | B81: Congas | C81: Dance & Electronic / Turntablists
A82: Georgia | B82: Steel Drums | C82: Dance & Electronic / World Dance
A83: Germany | C83: Folk / Folk
A84: Ghana | C84: Folk / Contemporary Folk
A85: Gibraltar | C85: Folk / Traditional British & Celtic Folk
A86: Greece | C86: Folk / Traditional Folk
A87: Greenland | C87: Hard Rock & Metal / Hard Rock & Metal
A88: Grenada | C88: Hard Rock & Metal / Hard Rock
A89: Guadeloupe | C89: Hard Rock & Metal / Alternative Metal
A90: Guam | C90: Hard Rock & Metal / British Metal
A91: Guatemala | C91: Hard Rock & Metal / Death Metal
A92: Guernsey | C92: Hard Rock & Metal / Pop Metal
A93: Guinea | C93: Hard Rock & Metal / Thrash & Speed Metal
A94: Guinea-Bissau | C94: Jazz / Jazz
A95: Guyana | C95: Jazz / Acid Jazz
A96: Haiti | C96: Jazz / Avant Garde & Free Jazz
A97: Heard And Mcdonald Islands | C97: Jazz / Bebop
A98: Honduras | C98: Jazz / Big Band
A99: Hong Kong | C99: Jazz / Brazilian Jazz
A100: Hungary | C100: Jazz / Cool Jazz
A101: Iceland | C101: Jazz / Ethno-Jazz
A102: India | C102: Jazz / Fusion
A103: Indonesia | C103: Jazz / Jazz Jam Bands
A104: Iran | C104: Jazz / Latin Jazz
A105: Iraq | C105: Jazz / Manouche
A106: Ireland | C106: Jazz / Modern Postbebop
A107: Isle of Man | C107: Jazz / New Orleans Jazz
A108: Israel | C108: Jazz / Nu Jazz
A109: Italy | C109: Jazz / Smooth Jazz
A110: Jamaica | C110: Jazz / Soul-Jazz & Boogaloo
A111: Japan | C111: Jazz / Swing Jazz
A112: Jersey | C112: Jazz / Traditional Jazz & Ragtime
A113: Jordan | C113: Jazz / Vocal Jazz
A114: Kazakhstan | C114: Latin / Latin Music
A115: Kenya | C115: Latin / Bachata
A116: Kiribati | C116: Latin / Banda
A117: Korea (Nord) | C117: Latin / Big Band
A118: Korea (Sud) | C118: Latin / Bolero
A119: Kosovo | C119: Latin / Bossa Nova
A120: Kuwait | C120: Latin / Corridos
A121: Kyrgyzstan | C121: Latin / Cumbia
A122: Laos | C122: Latin / Duranguence
A123: Latvia | C123: Latin / Fado
A124: Lebanon | C124: Latin / Flamenco
A125: Lesotho | C125: Latin / Forrô
A126: Liberia | C126: Latin / Grupero
A127: Libya | C127: Latin / Latin Rap
A128: Liechtenstein | C128: Latin / Mambo
A129: Lithuania | C129: Latin / Mariachi
A130: Luxembourg | C130: Latin / Merengue
A131: Macao | C131: Latin / MPB
A132: Macedonia | C132: Latin / Norteno
A133: Madagascar | C133: Latin / Ranchera
A134: Malawi | C134: Latin / Rock En Espanol
A135: Malaysia | C135: Latin / Salsa
A136: Maldives | C136: Latin / Samba
A137: Mali | C137: Latin / Samba Reggae
A138: Malta | C138: Latin / Son
A139: Marshall Islands | C139: Latin / Sonidero
A140: Martinique | C140: Latin / Tango
A141: Mauritania | C141: Latin / Tejano
A142: Mauritius | C142: Miscellaneous / Cabaret
A143: Mayotte | C143: Miscellaneous / Comedy
A144: Mexico | C144: Miscellaneous / Exercise
A145: Micronesia | C145: Miscellaneous / Holiday
A146: Moldova | C146: Miscellaneous / Humour
A147: Monaco | C147: Miscellaneous / Karaoke
A148: Mongolia | C148: Miscellaneous / Marches
A149: Montenegro | C149: Miscellaneous / Poetry, Spoken Word & Interviews
A150: Montserrat | C150: Miscellaneous / Wedding Music
A151: Morocco | C151: New Age / New Age
A152: Mozambique | C152: New Age / Buddhist Music
A153: Myanmar | C153: New Age / Celtic New Age
A154: Namibia | C154: New Age / Environmental
A155: Nauru | C155: New Age / Healing
A156: Nepal | C156: New Age / Mantra & Sanscrit Hymns
A157: Netherlands | C157: New Age / Meditation
A158: New Caledonia | C158: New Age / Relaxation
A159: New Zealand | C159: New Age / Ritual Music
A160: Nicaragua | C160: New Age / Tao Music
A161: Niger | C161: New Age / Theater & Ballet Music
A162: Nigeria | C162: New Age / Tibetan Music
A163: Niue | C163: Opera & Vocal / Opera
A164: Norfolk Island | C164: Opera & Vocal / Vocal
A165: Northern Mariana Islands | C165: Opera & Vocal / Arias
A166: Norway | C166: Opera & Vocal / Operettas
A167: Oman | C167: Opera & Vocal / Oratorios
A168: Pakistan | C168: Opera & Vocal / Vocal Non-Opera
A169: Palau | C169: Pop / Pop
A170: Palestinian Territory | C170: Pop / Adult Alternative
A171: Panama | C171: Pop / Adult Contemporary
A172: Papua New Guinea | C172: Pop / Easy Listening
A173: Paraguay | C173: Pop / French Pop
A174: Peru | C174: Pop / German Pop
A175: Philippines | C175: Pop / Italian Pop
A176: Pitcairn | C176: Pop / Oldies
A177: Poland | C177: Pop / Pop Rock
A178: Portugal | C178: Pop / Singer-Songwriters
A179: Puerto Rico | C179: Pop / Soft Rock
A180: Qatar | C180: Pop / Teen Pop
A181: Réunion | C181: R&B / Soul / R&B
A182: Romania | C182: R&B / Soul / Soul
A183: Russian Federation | C183: R&B / Soul / Classic R&B
A184: Rwanda | C184: R&B / Soul / Contemporary R&B
A185: Saint Barthélemy | C185: R&B / Soul / Funk
A186: Saint Helena | C186: R&B / Soul / Motown
A187: Saint Kitts And Nevis | C187: R&B / Soul / Neo-Soul
A188: Saint Lucia | C188: R&B / Soul / New Jack
A189: Saint Martin (French Part) | C189: R&B / Soul / Quiet Storm
A190: Saint Pierre And Miquelon | C190: Rap & Hip-Hop / Rap & Hip-Hop
A191: Saint Vincent And The Grenadines | C191: Rap & Hip-Hop / Bass
A192: Samoa | C192: Rap & Hip-Hop / East Coast
A193: San Marino | C193: Rap & Hip-Hop / Experimental Rap
A194: Sao Tome And Principe | C194: Rap & Hip-Hop / Gangsta & Hardcore
A195: Saudi Arabia | C195: Rap & Hip-Hop / International Rap
A196: Senegal | C196: Rap & Hip-Hop / International Rap
A197: Serbia | C197: Rap & Hip-Hop / Old School
A198: Seychelles | C198: Rap & Hip-Hop / Pop Rap
A199: Sierra Leone | C199: Rap & Hip-Hop / Southern Rap
A200: Singapore | C200: Rap & Hip-Hop / West Coast
... 101 more rows

Sheet Liste (hidden)
A1: A | B1: B | C1: C | D1: D | E1: E | F1: F | G1: G | H1: H | I1: I | J1: J | K1: 1
C2: new senza Macro | D2: old con Macro | E2: PLAYLIST | G2: TRACK | K2: 2
A3: a disposizione MA NON ELIMINARE LE COLONNE | C3: Terrritori | D3: Terrritori | E3: Tier | F3: Y / N | G3: Tier | H3: Language | I3: Track Number | J3: Disc Number | K3: 3
D4: funziona con Macro elusa 2019 | K4: 4
C5: World | D5: World | E5: Digital 45 | F5: Y | G5: Back | H5: Instrumental | I5: 1 | J5: 1 | K5: 5
C6: Scrivi le nazioni | D6: Europe | E6: Mini-EP | F6: N | G6: Mid | H6: Italian | I6: 2 | J6: 2 | K6: 6
D7: Italy | E7: EP | G7: Front | H7: English | I7: 3 | J7: 3 | K7: 7
D8: World except Europe | E8: Mini Album | H8: Spanish | I8: 4 | J8: 4 | K8: 8
D9: Gestisci stati singolarmente | E9: Mini Album 2 | H9: French | I9: 5 | J9: 5 | K9: 9
E10: Budget (One) | H10: German | I10: 6 | J10: 6 | K10: 10
E11: Budget Two | H11: Portuguese | I11: 7 | J11: 7 | K11: 11
E12: Back | H12: Abkhazian | I12: 8 | J12: 8 | K12: 12
E13: Mid | H13: Afrikaans | I13: 9 | J13: 9 | K13: 13
E14: Mid/Front | H14: Albanian | I14: 10 | J14: 10 | K14: 14
E15: Front (One) | H15: Amharic | I15: 11 | K15: 15
E16: Front Plus | H16: Arabic | I16: 12 | K16: 16
H17: Armenian | I17: 13 | K17: 17
H18: Assamese | I18: 14 | K18: 18
H19: Aymara | I19: 15 | K19: 19
H20: Azerbaijani | I20: 16 | K20: 20
H21: Bashkir | I21: 17 | K21: 21
H22: Basque | I22: 18 | K22: 22
H23: Bengali | I23: 19 | K23: 23
H24: Bhutani | I24: 20 | K24: 24
H25: Bihari | I25: 21 | K25: 25
H26: Bislama | I26: 22 | K26: 26
H27: Bosnian | I27: 23 | K27: 27
H28: Breton | I28: 24 | K28: 28
H29: Bulgarian | I29: 25 | K29: 29
H30: Burmese | I30: 26 | K30: 30
H31: Byelorussian | I31: 27 | K31: 31
H32: Cambodian | I32: 28 | K32: 32
H33: Cantonese | I33: 29 | K33: 33
H34: Catalan | I34: 30 | K34: 34
H35: Chechen | I35: 31 | K35: 35
H36: Chinese (Simplified) | I36: 32 | K36: 36
H37: Chinese (Traditional) | I37: 33 | K37: 37
H38: Corse | I38: 34 | K38: 38
H39: Croatian | I39: 35 | K39: 39
H40: Czech | I40: 36 | K40: 40
H41: Danish | I41: 37 | K41: 41
H42: Dutch | I42: 38 | K42: 42
H43: Estonian | I43: 39 | K43: 43
H44: Fiji | I44: 40 | K44: 44
H45: Finnish | I45: 41 | K45: 45
H46: Frisian | I46: 42 | K46: 46
H47: Galician | I47: 43 | K47: 47
H48: Georgian | I48: 44 | K48: 48
H49: Greek | I49: 45 | K49: 49
H50: Greenlandic | I50: 46 | K50: 50
H51: Guarani | I51: 47 | K51: 51
H52: Gujarati | I52: 48 | K52: 52
H53: Haitian | I53: 49 | K53: 53
H54: Hausa | I54: 50 | K54: 54
H55: Hawaiian | I55: 51 | K55: 55
H56: Hebrew | I56: 52 | K56: 56
H57: Hindi | I57: 53 | K57: 57
H58: Hungarian | I58: 54 | K58: 58
H59: Icelandic | I59: 55 | K59: 59
H60: Indonesian | I60: 56 | K60: 60
H61: Inupiak | I61: 57 | K61: 61
H62: Irish | I62: 58 | K62: 62
H63: Japanese | I63: 59 | K63: 63
H64: Javanese | I64: 60 | K64: 64
H65: Kannada | I65: 61 | K65: 65
H66: Kashmiri | I66: 62 | K66: 66
H67: Kazakh | I67: 63 | K67: 67
H68: Kinyarwanda | I68: 64 | K68: 68
H69: Kirghiz | I69: 65 | K69: 69
H70: Kirundi | I70: 66 | K70: 70
H71: Korean | I71: 67 | K71: 71
H72: Kurdish | I72: 68 | K72: 72
H73: Lao | I73: 69 | K73: 73
H74: Latin | I74: 70 | K74: 74
H75: Latvian | I75: 71 | K75: 75
H76: Lingala | I76: 72 | K76: 76
H77: Lithuanian | I77: 73 | K77: 77
H78: Luxembourgeois | I78: 74 | K78: 78
H79: Macedonian | I79: 75 | K79: 79
H80: Malagasy | I80: 76 | K80: 80
H81: Malay | I81: 77 | K81: 81
H82: Malayalam | I82: 78 | K82: 82
H83: Maltese | I83: 79 | K83: 83
H84: Maori | I84: 80 | K84: 84
H85: Marathi | I85: 81 | K85: 85
H86: Moldavian | I86: 82 | K86: 86
H87: Mongolian | I87: 83 | K87: 87
H88: Nauru | I88: 84 | K88: 88
H89: Nepali | I89: 85 | K89: 89
H90: Norwegian | I90: 86 | K90: 90
H91: Occitan | I91: 87 | K91: 91
H92: Odia | I92: 88 | K92: 92
H93: Oriya | I93: 89 | K93: 93
H94: Pashto | I94: 90 | K94: 94
H95: Persian | I95: 91 | K95: 95
H96: Polish | I96: 92 | K96: 96
H97: Punjabi | I97: 93 | K97: 97
H98: Quechua | I98: 94 | K98: 98
H99: Romanian | I99: 95 | K99: 99
H100: Russian | I100: 96 | K100: 100
H101: Samoan | I101: 97 | K101: 101
H102: Sangro | I102: 98 | K102: 102
H103: Sanskrit | I103: 99 | K103: 103
H104: Scots Gaelic | K104: 104
H105: Serbian | K105: 105
H106: Serbo-Croatian | K106: 106
H107: Sesotho | K107: 107
H108: Setswana | K108: 108
H109: Shona | K109: 109
H110: Sindhi | K110: 110
H111: Singhalese | K111: 111
H112: Siswati | K112: 112
H113: Slovak | K113: 113
H114: Slovenian | K114: 114
H115: Somali | K115: 115
H116: Sundanese | K116: 116
H117: Swahili | K117: 117
H118: Swedish | K118: 118
H119: Tagalog | K119: 119
H120: Tahitian | K120: 120
H121: Taiwanese | K121: 121
H122: Tajik | K122: 122
H123: Tamil | K123: 123
H124: Tatar | K124: 124
H125: Telugu | K125: 125
H126: Thai | K126: 126
H127: Tibetan | K127: 127
H128: Tigrinya | K128: 128
H129: Tonga | K129: 129
H130: Tsonga | K130: 130
H131: Turkish | K131: 131
H132: Turkmen | K132: 132
H133: Ukrainian | K133: 133
H134: Urdu | K134: 134
H135: Uzbek | K135: 135
H136: Vietnamese | K136: 136
H137: Welsh | K137: 137
H138: Wolof | K138: 138
H139: Xhosa | K139: 139
H140: Yiddish | K140: 140
H141: Yoruba | K141: 141
H142: Zulu | K142: 142
K143: 143
K144: 144
K145: 145
K146: 146
